[Event "Czech Open-Rapid 2022"]
[Site "Pardubice"]
[Date "2022.07.20"]
[Round "1.14"]
[White "Rasik, Vitezslav"]
[Black "Abisso, Filippo"]
[Result "1-0"]
[ECO "B30"]
[WhiteElo "2419"]
[BlackElo "1595"]
[Annotator "TA"]
[PlyCount "56"]
[EventDate "2022.07.20"]
[EventType "swiss"]
[EventCountry "CZE"]
[SourceTitle "playchess.com"]
[Source "ChessBase"]
[SourceQuality "1"]
[TimeControl "1200+10"]

{[%evp 12,56,18,14,47,47,116,57,55,64,78,29,25,33,46,12,27,12,93,18,20,18,31,41,76,72,75,70,69,45,40,43,47,35,41,45,97,71,124,89,127,111,219,171,217,211,642]} 1. e4 {[%emt 0:00:03]} c5 {[%emt 0:00:03]} 2. Nf3 {[%emt 0:00:04]} Nc6 {[%emt 0:00:13]} 3. Bb5 {[%emt 0:00:06]} e6 {[%emt 0:00:13]} 4. O-O {[%emt 0:00:18]} Nge7 {[%emt 0:00:31]} 5. c3 {[%emt 0:00:53]} a6 {[%emt 0:00:36]} 6. Ba4 {[%emt 0:00:06]} b5 {[%emt 0:00:25]} 7. Bc2 {[%emt 0:00:04]} Ng6 {[%emt 0:00:43] B30: Sicilian: 2...Nc6 3 Bb5, lines without ...g6.} 8. d4 {[%emt 0:00:31]} d5 {[%emt 0:00:41] [#]} ({Better is} 8... cxd4 $14 9. Nxd4 Bb7) 9. dxc5 $146 {[%emt 0:02:43]} ({White should play} 9. Re1 $16) ({Predecessor:} 9. exd5 Qxd5 10. c4 bxc4 11. Nc3 Qd6 12. Ne4 Qd7 13. dxc5 f5 14. Nd6+ Bxd6 15. Qxd6 Qxd6 16. cxd6 {1-0 (31) Powierski,E (2286)-Fartmann,B (2059) Bargteheide 2014}) 9... Bxc5 $14 {[%emt 0:00:24] White is slightly better.} 10. exd5 {[%emt 0:02:51]} exd5 {[%emt 0:00:40]} 11. Nbd2 {[%emt 0:01:32]} (11. b4 $16 Ba7 12. Re1+ (12. Bg5 Qd6 $14) 12... Be6 13. a4) 11... O-O $11 {[%emt 0:00:44]} 12. Nb3 {[%emt 0:00:07]} Ba7 {[%emt 0:02:06]} 13. Re1 {[%emt 0:01:10]} Bg4 {[%emt 0:02:37][%cal Og6e5]} 14. h3 {[%emt 0:00:41]} Be6 {[%emt 0:00:35]} (14... Bxf3 $11 15. Qxf3 Nce5) 15. Ng5 {[%emt 0:02:02]} (15. Be3 $16) 15... Qf6 {[%emt 0:01:02]} 16. Qf3 {[%emt 0:00:22]} Qxf3 {[%emt 0:01:12]} 17. Nxf3 {[%emt 0:00:02]} Rfe8 {[%emt 0:00:57]} 18. Be3 {[%emt 0:00:20]} b4 {[%emt 0:02:51]} 19. Bxa7 {[%emt 0:01:08]} (19. Bxg6 {seems wilder.} hxg6 20. Bxa7 Rxa7 21. Nc5) 19... Rxa7 {[%emt 0:00:06]} 20. cxb4 {[%emt 0:02:39]} Nxb4 {[%emt 0:00:05]} 21. Bxg6 {[%emt 0:00:32]} hxg6 {[%emt 0:00:25]} 22. Nbd4 {[%emt 0:00:06] Against Nc2} Nd3 {[%emt 0:01:07][%csl LRb2,LRe1]} 23. Re2 {[%emt 0:00:17]} Nc5 {[%emt 0:02:35]} ({Black should try} 23... Bd7 $14) 24. Rc1 {[%emt 0:00:18]} Ne4 {[%emt 0:01:06]} (24... Nd3 $142 25. Rc6 Bd7 26. Rxe8+ Bxe8) 25. Rec2 {[%emt 0:00:04]} Raa8 {[%emt 0:00:42]} 26. Rc7 {[%emt 0:00:21]} Red8 {[%emt 0:00:49]} (26... g5 $16 {is a better defense.}) 27. Ne5 {[%emt 0:00:34]} Nd6 {[%emt 0:00:38]} (27... Re8 $142 28. R1c6 Nf6 29. Nxe6 Rxe6) 28. Nxg6 $18 {[%emt 0:01:10] Pair of Knights!} Rac8 $2 {[%emt 0:00:27] Weighted Error Value: White=0.20 (precise) /Black=0.35} (28... Bd7) 1-0

[Event "Czech Open-Rapid 2022"]
[Site "Pardubice"]
[Date "2022.07.20"]
[Round "1.15"]
[White "Baron, Patrik"]
[Black "Cerveny, Martin"]
[Result "0-1"]
[ECO "B23"]
[WhiteElo "1800"]
[BlackElo "2396"]
[Annotator "TA"]
[PlyCount "66"]
[EventDate "2022.07.20"]
[EventType "swiss"]
[EventCountry "CZE"]
[SourceTitle "playchess.com"]
[Source "ChessBase"]
[SourceQuality "1"]
[TimeControl "1200+10"]

{[%evp 9,66,0,3,-12,0,0,14,0,0,-11,-10,-13,-20,-13,-9,-32,-43,-37,-39,-45,-46,-56,-44,-55,-44,-77,-61,-71,-49,-79,-59,-59,-63,-97,-58,-76,-86,-116,-112,-107,-91,-131,-129,-100,-112,-216,-215,-216,-220,-278,-273,-277,-276,-234,-41,-432,-400,-827,-789]} 1. e4 {[%emt 0:00:16]} c5 {[%emt 0:00:01]} 2. Nc3 {[%emt 0:00:02]} a6 {[%emt 0:00:03]} 3. f4 {[%emt 0:00:02]} b5 {[%emt 0:00:07]} 4. Nf3 {[%emt 0:00:06]} Bb7 {[%emt 0:00:03]} 5. d3 {[%emt 0:01:44]} e6 {[%emt 0:00:17]} 6. Bd2 {[%emt 0:02:37] [#] B23: Closed Sicilian: Lines without g3.} Ne7 $146 {[%emt 0:00:18]} ({Predecessor:} 6... Nc6 7. g3 b4 8. Na4 Qa5 9. b3 g6 10. a3 Bg7 11. axb4 cxb4 12. Bg2 Nge7 {1-0 (59) Sarra Bournet,M (1874)-Plante,R (2088) Quebec 2018}) 7. Qe2 {[%emt 0:00:44]} d6 {[%emt 0:01:08]} 8. a3 {[%emt 0:00:22] The position is equal.} Nbc6 {[%emt 0:00:10]} 9. g3 {[%emt 0:00:12]} g6 {[%emt 0:00:45]} 10. Bg2 {[%emt 0:00:14]} Bg7 {[%emt 0:00:02]} 11. O-O {[%emt 0:00:42]} O-O {[%emt 0:00:04]} 12. Kh1 {[%emt 0:00:25]} Rc8 {[%emt 0:00:30]} 13. Rae1 {[%emt 0:01:28]} Nd4 {[%emt 0:00:12]} 14. Qd1 {[%emt 0:01:06]} b4 {[%emt 0:00:07]} 15. Ne2 {[%emt 0:00:29]} Nxf3 {[%emt 0:00:21]} 16. Bxf3 {[%emt 0:00:07]} a5 {[%emt 0:00:43]} 17. c3 {[%emt 0:01:44]} Qb6 {[%emt 0:00:33]} 18. axb4 {[%emt 0:00:37]} axb4 {[%emt 0:00:06]} 19. cxb4 {[%emt 0:00:03]} cxb4 {[%emt 0:00:16]} ({Don't take} 19... Bxb2 20. Qb1 Ba3 21. bxc5 $16 (21. b5 d5 $11)) 20. Qb3 {[%emt 0:00:07]} Nc6 {[%emt 0:00:24][%cal Be7c6,Bc6a5,Ba5b3][%mdl 32]} 21. Kg2 {[%emt 0:02:12]} Rb8 {[%emt 0:00:29]} 22. Rc1 {[%emt 0:00:04]} Ba6 {[%emt 0:00:50]} 23. Rfd1 {[%emt 0:00:52]} Na5 {[%emt 0:00:17]} 24. Qc2 {[%emt 0:00:51]} Rfc8 $36 {[%emt 0:00:07][%mdl 2048] Keeping White busy.} 25. Qb1 {[%emt 0:00:04]} Nb3 {[%emt 0:00:06] Black is more active.} 26. Rxc8+ {[%emt 0:00:18]} Rxc8 {[%emt 0:00:02]} 27. Qa2 {[%emt 0:01:09]} (27. Be1 $17) 27... Nxd2 $19 {[%emt 0:00:09]} 28. Rxd2 {[%emt 0:00:01] [#]} b3 $1 {[%emt 0:00:49]} 29. Qb1 {[%emt 0:01:07]} Qe3 {[%emt 0:00:02]} 30. Qd1 {[%emt 0:02:54]} h5 {[%emt 0:00:03]} 31. d4 {[%emt 0:00:56]} Bxe2 $2 {[%emt 0:02:14]} (31... h4 $19 32. Nc3 Rxc3 33. bxc3 Qxc3) 32. Qxe2 $4 {[%emt 0:00:50][%mdl 8192] [#]} (32. Rxe2 $15 Qxd4 33. Qxb3) 32... Qxe2+ {[%emt 0:00:05]} 33. Bxe2 {[%emt 0:00:02]} (33. Rxe2 $142 Bxd4 34. Kh3) 33... Rc2 {[%emt 0:00:04] Weighted Error Value: White=0.57/Black=0.18 (very precise)} 0-1

[Event "Czech Open-Rapid 2022"]
[Site "Pardubice"]
[Date "2022.07.20"]
[Round "1.16"]
[White "Blatny, Pavel"]
[Black "Janko, Jan"]
[Result "1-0"]
[ECO "A01"]
[WhiteElo "2325"]
[BlackElo "1597"]
[Annotator "TA"]
[PlyCount "41"]
[EventDate "2022.07.20"]
[EventType "swiss"]
[EventCountry "CZE"]
[SourceTitle "playchess.com"]
[Source "ChessBase"]
[SourceQuality "1"]
[TimeControl "1200+10"]

{[%evp 9,41,7,21,6,25,25,25,19,336,343,356,394,358,393,393,383,368,374,371,374,376,372,414,417,551,535,667,647,708,701,688,675,808,785]} 1. b3 Nf6 2. Bb2 d5 3. e3 c5 4. f4 Nc6 5. Nf3 {[%cal Bg1f3,Bf3e5,Be5f7][%mdl 32]} Bg4 6. Be2 {[#] A03: Bird's Opening with 1...d5.} Qd6 $146 ({Predecessor:} 6... g6 7. O-O Bxf3 8. Bxf3 Bg7 9. Kh1 O-O 10. d3 Re8 11. Nd2 e5 12. Rb1 Qc7 13. g3 {0-1 (34) Jobava,B (2603)-Kazakovskiy,V (2476) Chess.com INT 2021}) 7. Ne5 Bxe2 8. Qxe2 {White has an edge.} O-O-O $2 {[%mdl 8192]} (8... e6 $11) 9. Nxf7 $18 Qd7 10. Nxh8 {[#] Nf7 is the strong threat.} e6 11. Bxf6 gxf6 12. Qh5 {Strongly threatening Nf7.} Bg7 13. Nf7 Rf8 14. Nh6 f5 15. c3 {[%cal Bc2c3,Bc3b4,Bb4c5][%mdl 32]} d4 16. O-O dxe3 17. dxe3 {White is clearly winning.} Qd3 18. Re1 Nb4 {[#]} 19. cxb4 Bxa1 20. bxc5 Bg7 21. Nf7 {Black did not feel at home in the position after the opening.  Weighted Error Value: White=0.03 (flawless) /Black=0.76} 1-0

[Event "Czech Open-Rapid 2022"]
[Site "Pardubice"]
[Date "2022.07.20"]
[Round "1.17"]
[White "Nespurek, Jan"]
[Black "Akesson, Ralf"]
[Result "1/2-1/2"]
[ECO "B47"]
[WhiteElo "1571"]
[BlackElo "2427"]
[Annotator "TA"]
[PlyCount "104"]
[EventDate "2022.07.20"]
[EventType "swiss"]
[EventCountry "CZE"]
[SourceTitle "playchess.com"]
[Source "ChessBase"]
[SourceQuality "1"]
[TimeControl "1200+10"]

{[%evp 14,104,-23,-14,-20,-18,-22,-17,-13,-27,-3,-42,-39,-45,-27,-18,-22,-41,-45,-62,-71,-67,-24,-21,-28,-32,0,0,23,5,29,43,33,37,51,49,75,67,70,74,64,60,83,87,95,88,103,104,94,91,84,90,118,108,122,62,61,65,100,105,188,165,158,168,287,300,286,93,100,-29,197,0,0,0,8,8,8,0,0,0,0,0,0,0,0,0,0,0,0,0,0,0,0]} 1. e4 c5 2. Nf3 e6 3. d4 cxd4 4. Nxd4 Nc6 5. Nc3 Qc7 6. Nf3 a6 7. a3 Nf6 8. Bd3 b5 {B43: Sicilian: Kan Variation: 5 Nc3.} 9. Ne2 {[#]} Bb7 $146 ({Predecessor:} 9... d6 10. O-O Be7 11. Bg5 O-O 12. Ng3 Bb7 13. Rc1 Na5 14. b3 Nc6 15. Bf4 Qa5 {0-1 (56) Parraga,L-Asensio Cueto,J Spain 1993}) 10. Bf4 d6 11. Ng3 Be7 12. h3 O-O 13. O-O Rad8 14. Qe2 Nd7 15. a4 bxa4 16. Bxa6 Bxa6 17. Qxa6 Nc5 (17... Ra8 $5 {[%cal Ra8a6]} 18. Qc4 Rfc8 $15) 18. Qc4 {And now Qxc5 would win.} Qb6 19. Rfb1 d5 20. exd5 Rxd5 21. Ne4 Qb4 (21... Na5 $5 22. Qe2 Nxe4 23. Qxe4 a3 24. bxa3 Qc6 $11) 22. Qxb4 Nxb4 23. Nxc5 Rxc5 24. c3 (24. Rxa4 Rxc2 25. Ne1 Rc6 $15) 24... Nd5 25. Rxa4 Nxf4 26. Rxf4 Rb8 27. Nd2 $1 f5 {[#]} 28. Rc4 $1 Rd5 29. Nf3 e5 {[%cal Be6e5,Be5e4][%mdl 32]} 30. b4 Bf6 31. g4 e4 32. Nd4 fxg4 33. hxg4 Rg5 {[#]} 34. f3 (34. Kf1 $1 $16) 34... h5 (34... Bxd4+ 35. Rxd4 exf3 36. Kf2 $16) 35. Kf2 (35. Ne6 $5 {[%cal Re6g5]} Rgb5 36. gxh5 $16 (36. fxe4 Re5 $16) (36. Rxe4 Bxc3 37. gxh5 Bxb4 $14)) 35... hxg4 36. fxe4 g3+ (36... Be5 $16 {might work better.}) 37. Kg2 $18 Ra8 38. Rb2 {Inhibits Ra2.} Rh5 (38... Bxd4 {was necessary.} 39. Rxd4 (39. cxd4 Ra3 $18) 39... Kf7) 39. Nf3 {Strongly threatening b5.} (39. Kxg3 Rh6 40. Nc6 Bg5 $18) 39... Ra3 40. e5 $2 ({Don't take} 40. Kxg3 $6 Bxc3 41. Rb1 (41. Rc8+ Kf7 $16) 41... Rb5 $16) (40. Rc2 $18) 40... Bxe5 $16 41. Nxe5 (41. Rc8+ $16 Kf7 42. Nxe5+ Rxe5 43. b5 (43. Kxg3 Re3+ 44. Kf4 Rexc3 $11)) 41... Rxe5 $2 (41... Rh2+ $11 42. Kxg3 Rxb2) 42. Kxg3 $2 {[%mdl 4096] Endgame KRR-KRR} ({White must play} 42. b5 $18 Kf7 43. b6 (43. Kxg3 Re3+ 44. Kf4 Rexc3 $16)) 42... Re3+ $1 $11 {The position is equal.} 43. Kf4 Rexc3 44. Rxc3 Rxc3 {KR-KR} 45. b5 {[%cal Bb4b5,Bb5b6,Bb6b7][%mdl 32]} Kf7 46. b6 {b7 would kill now.} Rc8 $1 47. b7 Rb8 48. Ke5 {White wants to mate with Kd6.} Ke7 49. Rg2 Kd7 50. Rxg7+ Kc6 51. Kd4 Rxb7 52. Rxb7 Kxb7 {Weighted Error Value: White=0.21 (precise) /Black=0.18 (very precise)} 1/2-1/2

[Event "Czech Open-Rapid 2022"]
[Site "Pardubice"]
[Date "2022.07.20"]
[Round "1.18"]
[White "Mladek, Richard"]
[Black "Modrova, Hana"]
[Result "1-0"]
[ECO "A41"]
[WhiteElo "2330"]
[BlackElo "1803"]
[Annotator "TA"]
[PlyCount "66"]
[EventDate "2022.07.20"]
[EventType "swiss"]
[EventCountry "CZE"]
[SourceTitle "playchess.com"]
[Source "ChessBase"]
[SourceQuality "1"]
[TimeControl "1200+10"]

{[%evp 9,66,64,74,54,49,42,46,45,48,33,42,0,40,31,39,30,46,43,35,18,33,-26,0,0,0,-81,0,0,134,93,131,123,175,93,377,379,382,407,474,472,585,418,412,407,381,375,375,375,375,368,361,345,344,332,329,331,436,433,625]} 1. d4 {[%emt 0:00:02]} d6 {[%emt 0:00:02]} 2. Nf3 {[%emt 0:00:07]} Nf6 {[%emt 0:00:07]} 3. c4 {[%emt 0:00:04]} Bg4 {[%emt 0:00:10]} 4. Nc3 {[%emt 0:00:40]} c6 {[%emt 0:00:01]} 5. e4 {[%emt 0:00:36]} Qa5 {[%emt 0:00:14]} 6. Bd3 {[%emt 0:02:00] A53: Old Indian Defence without Nf3.} e5 {[%emt 0:00:40]} 7. d5 {[%emt 0:00:04]} Nbd7 {[%emt 0:01:52]} 8. h3 {White is slightly better.} Bh5 9. Bd2 {[%emt 0:01:52] [#]} Nc5 $146 {[%emt 0:01:32]} ({Predecessor:} 9... c5 10. a3 Be7 11. O-O O-O 12. g3 Qd8 13. Kg2 Bxf3+ 14. Qxf3 Ne8 15. h4 a6 {0-1 (60) Zhao,X (2423)-Ivanov,S (2534) Moscow 2006}) 10. Qe2 {[%emt 0:00:55]} Be7 {[%emt 0:01:20]} (10... Nb3 $5) 11. O-O {[%emt 0:01:15]} Qc7 {[%emt 0:01:55]} 12. Bc2 {[%emt 0:00:45]} O-O {[%emt 0:00:26]} 13. g4 {[%emt 0:00:14]} Bg6 {[%emt 0:00:02]} 14. Kg2 {[%emt 0:00:16]} Qd7 {[%emt 0:00:08][%cal Of6g4]} 15. Rad1 {[%emt 0:01:37] [#]} ({White should try} 15. Ne1 $14) 15... Nxg4 $1 {[%emt 0:02:40][%cal Oc6d5]} 16. dxc6 {[%emt 0:00:04]} (16. b4 Na6) 16... bxc6 {[%emt 0:00:12] ...Nf6 is the strong threat.} 17. Bc1 {[%emt 0:00:02]} (17. b4 $11 Nb7 18. Bc1) 17... Nf6 {[%emt 0:00:29]} (17... Qc8 $1 $17 {[%cal Oa8b8] aiming for ...Rb8!} 18. b4 Nb7 $1) 18. Nxe5 $11 {[%emt 0:00:19]} Qe6 {[%emt 0:00:22]} (18... Qb7 $11 {remains equal.} 19. Nxg6 hxg6) 19. Nxg6 {[%emt 0:00:31]} fxg6 {[%emt 0:00:09]} 20. b4 {[%emt 0:00:07]} Ncd7 {[%emt 0:00:38] [#]} (20... Nb7 $16) 21. f4 {[%emt 0:00:18]} ({Better is} 21. c5 $1 $18 Kh8 22. f4) 21... Nb6 $2 {[%emt 0:03:00][%mdl 8192] Black cannot hold the game after this.} (21... a5 $16) 22. c5 $18 {[%emt 0:00:19]} ({Resist} 22. e5 dxe5 23. fxe5 (23. Qxe5 Qxe5 24. fxe5 Bxb4 $11) 23... Nh5 $18) 22... dxc5 {[%emt 0:00:11]} 23. bxc5 {[%emt 0:00:02]} Bxc5 {[%emt 0:00:07]} 24. Bb3 {[%emt 0:00:03]} Nfd5 {[%emt 0:00:33]} 25. exd5 {[%emt 0:00:27]} Qxe2+ {[%emt 0:00:12]} 26. Nxe2 {[%emt 0:00:01]} cxd5 {[%emt 0:00:15]} 27. Rxd5 {[%emt 0:00:02]} Nxd5 {[%emt 0:00:15]} 28. Bxd5+ {[%emt 0:00:02]} Kh8 {[%emt 0:00:02]} 29. Bxa8 {[%emt 0:00:02]} Rxa8 {[%emt 0:00:01]} 30. Bb2 {[%emt 0:00:06]} Re8 {[%emt 0:00:18]} 31. Be5 {[%emt 0:00:02]} g5 {[%emt 0:00:08]} 32. Rc1 {[%emt 0:00:09]} Be3 {[%emt 0:00:09]} 33. Rc7 {[%emt 0:00:07]} Bxf4 {[%emt 0:00:52] Weighted Error Value: White=0.26 (precise) /Black=0.56} (33... gxf4 $142 34. Kf3 Kg8 35. Rxg7+ Kf8) 1-0

[Event "Czech Open-Rapid 2022"]
[Site "Pardubice"]
[Date "2022.07.20"]
[Round "1.19"]
[White "Henke, Georg"]
[Black "Seger, Ruediger"]
[Result "0-1"]
[ECO "A48"]
[WhiteElo "1566"]
[BlackElo "2299"]
[Annotator "TA"]
[PlyCount "50"]
[EventDate "2022.07.20"]
[EventType "swiss"]
[EventCountry "CZE"]
[SourceTitle "playchess.com"]
[Source "ChessBase"]
[SourceQuality "1"]
[TimeControl "1200+10"]

{[%evp 11,50,-8,-5,-55,-70,-75,-70,-126,-121,-132,-120,-247,-236,-239,-160,-186,-184,-186,-195,-189,-195,-186,-192,-196,-166,-180,-150,-204,-158,-161,-155,-212,-197,-190,-185,-164,-117,-204,-153,-958,-945]} 1. d4 {[%emt 0:00:03]} Nf6 {[%emt 0:00:01]} 2. Nf3 {[%emt 0:00:01]} g6 {[%emt 0:00:01]} 3. c4 {[%emt 0:00:01]} Bg7 {[%emt 0:00:01]} 4. e3 {[%emt 0:00:01]} O-O {[%emt 0:00:02]} 5. Nc3 {[%emt 0:00:02]} c5 {[%emt 0:00:01]} 6. Bd3 {[%emt 0:00:28]} d5 {[%emt 0:00:11]} 7. b3 {[%emt 0:00:03] D94: Grünfeld: 4 Nf3 Bg7 5 e3.} (7. O-O $11) 7... Nc6 $15 {[%emt 0:00:22][%cal Bb8c6,Bc6d4,Bd4f3][%mdl 32]} 8. O-O {[%emt 0:00:11]} dxc4 {[%emt 0:00:08] [#]} 9. bxc4 $146 {[%emt 0:00:02]} ({White should try} 9. Bxc4 $15 a6 10. Ne5 (10. dxc5 Ne4 $17)) ({Predecessor:} 9. Bxc4 Bg4 10. Ba3 cxd4 11. exd4 Qa5 12. Bb2 Rad8 13. Re1 Nxd4 14. Qc1 Bxf3 {0-1 (14) Garcia Padron,J (1973)-Fernandez Garcia,J (2450) Las Palmas 2005}) 9... cxd4 $17 {[%emt 0:00:03]} 10. exd4 {[%emt 0:00:21]} Nxd4 {[%emt 0:00:03] And now ...Ng4 would win.} 11. Re1 {[%emt 0:01:26]} (11. Rb1 $17 {might work better.}) 11... Bg4 {[%emt 0:00:20]} 12. Be2 {[%emt 0:01:03]} Nxf3+ {[%emt 0:00:26]} 13. Bxf3 {[%emt 0:00:03]} Qxd1 {[%emt 0:00:03]} 14. Bxd1 {[%emt 0:00:03]} Bxd1 {[%emt 0:00:09]} 15. Nxd1 {[%emt 0:00:20]} e6 {[%emt 0:00:53]} 16. Ba3 {[%emt 0:00:30]} Rfd8 {[%emt 0:00:24]} 17. Rb1 {[%emt 0:00:37]} Rd7 {[%emt 0:00:18]} 18. Ne3 {[%emt 0:00:30]} b6 {[%emt 0:01:59]} 19. c5 {[%emt 0:02:05]} (19. Rbd1 $17) 19... bxc5 {[%emt 0:00:18]} 20. Bxc5 {[%emt 0:00:02]} Ne4 {[%emt 0:00:04]} 21. Bb4 {[%emt 0:01:01]} (21. Ba3 $17 {keeps fighting.}) 21... a5 $19 {[%emt 0:00:15]} 22. Ba3 {[%emt 0:00:34]} Nc3 {[%emt 0:00:31] Against Rbd1} 23. Rb2 {[%emt 0:01:17]} h5 {[%emt 0:00:34]} (23... Rd4 $19 24. Be7 Rd3) 24. Nc4 {[%emt 0:00:33]} (24. Rc2 $17) 24... Rad8 {[%emt 0:00:17] [#] aiming for ...Rd1.} 25. Rc2 $2 {[%emt 0:01:06]} (25. g3 $17) 25... Rd1 {[%emt 0:00:25] Weighted Error Value: White=0.80/Black=0.17 (very precise)} 0-1